bitfinex-derivatives/quotes_ETHF0:USTF0_20210401
["timestamp","ask_amount","ask_price","bid_price","bid_amount"]
[1617294834970,24.2353,1939.7,1939.6,90.61886257]
[1617294835870,24.2353,1939.7,1939.6,90.26187043]
[1617294836072,24.2353,1939.7,1939.6,84.81907412]
[1617294836271,24.2353,1939.7,1939.6,21.81837412]
[1617294836473,84.1381,1939.7,1939.6,21.81837412]
[1617294836877,84.1381,1939.7,1939.6,20.0]
[1617294838173,24.2353,1939.7,1939.6,20.0]
[1617294838373,24.2353,1939.7,1939.5,8.35085909]
[1617294838975,24.2353,1939.7,1939.6,4.23513782]
[1617294839379,24.2353,1939.7,1939.5,77.19337657]
[1617294839677,24.2353,1939.7,1939.6,1.81856246]
[1617294842581,24.2353,1939.7,1939.6,6.05287986]
[1617294846987,24.2353,1939.7,1939.6,1.81856246]
[1617294847385,24.2353,1939.7,1939.6,7.26230924]
[1617294848586,24.2353,1939.7,1939.6,1.81856246]
[1617294854090,24.2353,1939.7,1939.6,7.26203743]
[1617294854391,24.2353,1939.7,1939.6,1.81856246]
[1617294854792,24.2353,1939.7,1939.6,7.26196302]
[1617294859600,24.2353,1939.7,1939.6,1.81856246]
[1617294866303,24.2353,1939.7,1939.6,7.26151129]
[1617294866704,24.2353,1939.7,1939.6,1.81856246]
[1617294869406,24.2353,1939.7,1939.5,8.34989422]
[1617294870406,24.2353,1939.7,1939.6,66.7769]
[1617294870910,24.2353,1939.7,1939.6,68.59512813]
[1617294872109,24.21349397,1939.7,1939.6,70.22542813]
[1617294872310,24.21349397,1939.7,1939.6,3.44852813]
[1617294872513,24.21349397,1939.7,1939.6,9.24787808]
[1617294872912,24.21349397,1939.7,1939.6,7.42964995]
[1617294876315,24.21349397,1939.7,1939.6,1.98755242]
[1617294877117,24.21349397,1939.7,1939.6,5.79993084]
[1617294878116,24.21349397,1939.7,1939.6,81.22083084]
[1617294878316,24.21349397,1939.7,1939.6,83.03896012]
[1617294880418,24.21349397,1939.7,1939.6,84.42026012]
[1617294883321,24.21349397,1939.7,1939.6,83.03896012]
[1617294886723,24.21349397,1939.7,1939.6,7.61806012]
[1617294887324,24.21349397,1939.7,1939.6,0.35725242]
[1617294887524,24.21349397,1939.7,1939.6,1.66805242]
[1617294887725,24.21349397,1939.7,1939.6,8.3201655]
[1617294892936,24.21349397,1939.7,1939.6,1.66805242]
[1617294893330,24.21349397,1939.7,1939.6,0.35725242]
[1617294894032,24.21349397,1939.7,1939.6,20.35725242]
[1617294895634,24.21349397,1939.7,1939.6,27.00871072]
[1617294896033,24.13759397,1939.7,1939.6,27.00871072]
[1617294896236,24.13759397,1939.7,1939.6,20.35725242]
[1617294898940,24.13759397,1939.7,1939.6,0.35725242]
[1617294900240,24.13759397,1939.7,1939.6,80.90545242]
[1617294900641,24.13759397,1939.7,1939.6,89.37228978]
[1617294902742,24.13759397,1939.7,1939.6,82.72332775]
[1617294903645,24.13759397,1939.7,1939.6,83.76622775]
[1617294904246,24.13759397,1939.7,1939.6,82.72332775]
[1617294910754,24.13759397,1939.7,1939.6,2.17512775]
[1617294911554,24.13759397,1939.7,1939.6,0.35725242]
[1617294912353,24.13759397,1939.7,1939.6,76.07835242]
[1617294912853,24.13759397,1939.7,1939.6,77.8961166]
[1617294914254,24.13759397,1939.7,1939.6,2.1750166]
[1617294914654,24.13759397,1939.7,1939.6,0.35725242]
[1617294917763,11.0,1939.7,1939.6,0.35725242]
[1617294918164,11.0,1939.7,1939.6,8.20933822]
[1617294918363,1.2115,1939.7,1939.6,10.20933822]
[1617294918565,14.1681,1940.8,1939.6,11.41661949]
[1617294918766,14.1681,1940.8,1939.6,41.41661949]
[1617294918965,14.1681,1940.8,1940.6,5.43504345]
[1617294919165,14.1681,1940.8,1940.7,5.43490417]
[1617294919367,8.9581,1940.8,1940.7,5.79120321]
[1617294919566,66.049,1941.3,1940.8,66.0172]
[1617294919966,66.049,1941.3,1941.1,4.22706288]
[1617294920166,66.049,1941.3,1941.2,2.90695]
[1617294921067,66.049,1941.3,1941.2,7.13369673]
[1617294922068,66.049,1941.3,1941.2,8.17369673]
[1617294923371,66.049,1941.3,1941.2,3.94695]
[1617294923573,66.049,1941.3,1941.2,2.90695]
[1617294924380,66.049,1941.3,1941.2,7.13369371]
[1617294924574,66.049,1941.3,1941.2,8.16239371]
[1617294925173,66.049,1941.3,1941.2,7.13369371]
[1617294925573,66.049,1941.3,1941.2,8.37689371]
[1617294925775,66.049,1941.3,1941.2,4.15015]
[1617294926578,66.049,1941.3,1941.2,8.37600093]
[1617294928881,66.049,1941.3,1941.2,4.15015]
[1617294929681,8.84985,1941.2,1941.0,1.0442]
[1617294929882,8.84985,1941.2,1940.8,66.0172]
[1617294929883,8.84985,1941.2,1941.1,1.5318]
[1617294930482,8.84985,1941.2,1941.1,4.43875]
[1617294931285,8.84985,1941.2,1941.1,2.90695]
[1617294935588,8.84985,1941.2,1941.1,4.13775]
[1617294936391,8.84985,1941.2,1941.1,5.17445]
[1617294937395,8.84985,1941.2,1941.1,4.13775]
[1617294937991,7.81305,1941.2,1941.1,4.13775]
[1617294938191,7.14785,1941.2,1941.1,4.13775]
[1617294938392,7.14785,1941.2,1941.1,5.15275]
[1617294938591,7.00785,1941.2,1941.1,5.15275]
[1617294938793,7.00785,1941.2,1941.1,35.15275]
[1617294940000,5.52485,1941.2,1941.1,35.15275]
[1617294940597,3.87725,1941.2,1941.1,35.15275]
[1617294940797,3.10585,1941.2,1941.1,35.15275]
[1617294941799,2.68855,1941.2,1941.1,35.15275]
[1617294943899,2.49545,1941.2,1941.1,35.15275]
[1617294944098,14.49925,1941.5,1941.1,35.15275]
[1617294944300,14.39985,1941.5,1941.1,35.15275]
[1617294944499,9.98185,1941.5,1941.4,2.90695]
[1617294944699,9.98185,1941.5,1941.4,32.90695]
[1617294946299,9.88035,1941.5,1941.4,32.90695]
[1617294946698,9.20915,1941.5,1941.4,34.90695]
[1617294947499,7.67005,1941.5,1941.4,34.90695]
[1617294948100,7.67005,1941.5,1941.4,4.90695]
[1617294948301,7.67005,1941.5,1941.4,2.90695]
[1617294948502,7.67005,1941.5,1941.4,22.90695]
[1617294949702,6.14965,1941.5,1941.4,22.90695]
[1617294950304,5.11965,1941.5,1941.4,22.90695]
[1617294950703,3.08765,1941.5,1941.4,22.90695]
[1617294950906,0.20915,1941.5,1941.4,22.90695]
[1617294951106,5e-05,1941.5,1941.4,22.90695]
[1617294956011,15.0948,1942.3,1941.4,22.90695]
[1617294956212,15.0948,1942.3,1941.4,24.52055]
[1617294956615,15.0948,1942.3,1942.2,2.90695]
[1617294957417,15.0948,1942.3,1942.2,22.90695]
[1617294958622,15.0948,1942.3,1942.2,23.93765]
[1617294958819,14.6223,1943.2,1942.2,23.93765]
[1617294959020,14.6223,1943.2,1942.3,77.4261]
[1617294959219,14.6223,1943.2,1942.3,78.6469]
[1617294959824,14.6223,1943.2,1942.4,20.0]
[1617294960623,14.6223,1943.2,1943.1,2.90695]
[1617294961423,14.6223,1943.2,1943.1,22.90695]
[1617294965227,14.6223,1943.2,1943.1,85.08035]
[1617294965627,14.6223,1943.2,1943.1,22.90695]
[1617294970635,14.6223,1943.2,1943.1,96.98775]
[1617294971238,16.1091,1943.2,1943.1,96.98775]
[1617294975043,14.6223,1943.2,1943.1,96.98775]
[1617294976347,2.0,1943.6,1943.1,96.98775]
[1617294976549,44.4097,1944.1,1943.1,22.90695]
[1617294976550,14.4097,1944.1,1943.1,22.90695]
[1617294976748,14.4097,1944.1,1944.0,64.0367]
[1617294976949,14.4097,1944.1,1944.0,66.94365]
[1617294977547,14.4097,1944.1,1944.0,86.94365]
[1617294978450,14.4097,1944.1,1944.0,22.90695]
[1617294978949,44.4097,1944.1,1944.0,22.90695]
[1617294980351,44.4097,1944.1,1944.0,10.90695]
[1617294980952,46.4097,1944.1,1944.0,13.8139]
[1617294981151,46.4097,1944.1,1944.0,10.90695]
[1617294982152,47.8455,1944.1,1944.0,10.90695]
[1617294982554,47.8455,1944.1,1943.0,86.1487]
[1617294982754,77.491,1944.0,1943.0,86.1487]
[1617294982953,77.491,1944.0,1943.4,2.90695]
[1617294982954,32.0,1943.9,1943.4,2.90695]
[1617294983854,32.0,1943.9,1943.0,86.1487]
[1617294984854,2.90695,1943.1,1942.8,2.90695]
[1617294985054,30.0,1943.0,1942.8,2.90695]
[1617294985256,62.8045,1942.9,1942.8,2.90695]
[1617294985454,94.8045,1942.9,1942.8,2.90695]
[1617294986859,97.71145,1942.9,1942.8,2.90695]
[1617294988161,97.71145,1942.9,1941.8,62.8135]
[1617294988559,14.1207,1942.8,1941.8,62.8135]
[1617294988760,32.0,1942.7,1941.8,62.8135]
[1617294988960,33.1634,1942.7,1942.5,2.90695]
[1617294990963,2.90695,1942.6,1942.5,2.90695]
[1617294991163,34.90695,1942.6,1942.5,2.90695]
[1617294991662,34.90695,1942.6,1941.8,62.8135]
[1617294992567,34.90695,1942.6,1939.9,2.0]
[1617294992767,66.4951,1942.2,1940.7,66.4951]
[1617294992967,34.90695,1942.1,1940.7,66.4951]
[1617294993667,63.81075,1942.1,1939.9,2.0]
[1617294993868,61.81075,1942.1,1941.4,60.5996]
[1617294994067,58.9038,1942.1,1941.4,60.5996]
[1617294994267,58.9038,1942.1,1941.4,61.7005]
[1617294995069,58.9038,1942.1,1942.0,2.90695]
[1617295002577,28.9038,1942.1,1942.0,2.90695]
[1617295008392,30.1331,1942.1,1942.0,2.90695]
[1617295009185,60.1331,1942.1,1942.0,2.90695]
[1617295011987,62.1331,1942.1,1942.0,2.90695]
[1617295020600,60.1331,1942.1,1942.0,2.90695]
[1617295020799,30.1331,1942.1,1942.0,2.90695]
[1617295021002,28.9038,1942.1,1942.0,2.90695]
[1617295021601,58.9038,1942.1,1942.0,2.90695]
[1617295022600,60.9038,1942.1,1942.0,2.90695]
[1617295025005,77.0637,1942.0,1940.6,77.0637]
[1617295025207,30.0,1941.9,1940.6,77.0637]
[1617295025406,2.0,1941.8,1941.3,2.90695]
[1617295025605,30.0,1941.7,1941.3,2.90695]
[1617295025807,2.0,1941.6,1941.3,2.90695]
[1617295026006,30.0,1941.5,1941.3,2.90695]
[1617295026209,2.0,1941.4,1941.3,2.90695]
[1617295026407,32.0,1941.4,1941.3,2.90695]
[1617295027209,32.0,1941.4,1939.9,71.9987]
[1617295027410,34.90695,1941.4,1940.6,2.90695]
[1617295028011,81.4898,1940.6,1939.9,71.9987]
[1617295028213,30.0,1940.5,1939.9,71.9987]
[1617295028613,30.0,1940.5,1939.2,4.20265366]
[1617295028813,17.112,1940.4,1939.2,4.20265366]
[1617295029011,81.4965,1939.5,1939.0,4.20298231]
[1617295029213,30.0,1939.4,1939.0,4.20298231]
[1617295029611,30.0,1939.4,1938.9,4.20310684]
[1617295030012,30.0,1939.4,1938.7,2.584]
[1617295030013,14.7739,1939.3,1938.7,2.584]
[1617295030212,30.0,1939.2,1938.7,2.584]
[1617295031314,30.0,1939.2,1939.1,2.90695]
[1617295032514,30.0,1939.2,1938.0,4.20168034]
[1617295032716,62.9368,1939.1,1937.9,4.20226403]
[1617295032913,30.0,1939.0,1937.9,4.20226403]
[1617295033115,2.0,1938.9,1937.6,8.60403956]
[1617295033319,78.3123,1938.3,1937.6,8.60403956]
[1617295033515,30.0,1938.3,1937.6,8.60403956]
[1617295033715,78.3648,1937.7,1937.6,6.78629184]
[1617295033916,79.6718,1937.7,1937.6,6.78629184]
[1617295034114,79.6718,1937.7,1937.6,2.584]
[1617295034315,1.307,1937.7,1937.6,2.584]
[1617295034514,1.307,1937.7,1937.6,65.6073]
[1617295034919,1.307,1937.7,1937.6,71.62844765]
[1617295035114,93.0233,1939.0,1937.6,71.62844765]
[1617295035316,93.0233,1939.0,1938.9,2.90695]
[1617295035515,30.0,1939.0,1938.9,2.90695]
[1617295037420,32.90695,1939.0,1938.9,2.90695]
[1617295039322,32.90695,1939.0,1938.7,2.90695]
[1617295039522,34.03945,1939.0,1938.7,2.90695]
[1617295040725,32.90695,1939.0,1938.7,2.90695]
[1617295041427,32.90695,1939.0,1938.9,2.90695]
[1617295042231,30.0,1939.0,1938.9,4.14555]
[1617295042629,14.0185,1939.1,1938.9,4.14555]
[1617295043040,30.0,1939.0,1938.9,4.14555]
[1617295043430,30.0,1939.0,1938.9,2.90695]
[1617295044230,30.0,1939.0,1936.1,11.95863648]
[1617295044429,30.0,1939.0,1937.7,78.9843]
[1617295045431,32.90695,1939.0,1938.9,2.90695]
[1617295046033,32.90695,1939.0,1938.4,74.5344]
[1617295047433,30.0,1939.0,1938.8,2.90695]
[1617295048233,30.0,1939.0,1937.6,66.5925]
[1617295048434,31.5999,1939.0,1937.6,66.5925]
[1617295049435,31.5999,1939.0,1938.3,2.90695]
[1617295049633,31.5999,1939.0,1936.8,34.189]
[1617295049837,78.5623,1938.4,1936.8,29.0]
[1617295050037,30.0,1938.3,1936.8,29.0]
[1617295050436,43.9929,1938.3,1936.8,29.0]
[1617295050838,57.6629,1938.3,1936.8,29.0]
[1617295051043,57.6629,1938.3,1936.8,31.0]
[1617295051240,57.6629,1938.3,1936.8,15.0]
[1617295051439,57.6629,1938.3,1937.8,2.90695]
[1617295053341,15.0,1938.2,1937.8,2.90695]
[1617295053539,15.0,1938.2,1938.1,2.90695]
[1617295053941,15.0,1938.2,1938.1,4.28825]
[1617295056542,14.2319,1938.2,1938.1,4.28825]
[1617295057543,14.2319,1938.2,1938.1,2.90695]
[1617295064556,124.1802,1938.2,1938.1,2.90695]
[1617295064754,125.6341,1938.2,1938.1,2.90695]
[1617295064954,125.6341,1938.2,1936.8,31.0]
[1617295065555,125.6341,1938.2,1937.9,2.90695]
[1617295065754,14.0014,1938.1,1937.9,2.90695]
[1617295065956,30.0,1938.0,1937.9,2.90695]
[1617295066557,32.0,1938.0,1937.9,2.90695]
[1617295066757,30.0,1938.0,1937.9,2.90695]
[1617295067460,14.0014,1938.1,1937.9,2.90695]
[1617295067659,16.90835,1938.1,1937.9,2.90695]
[1617295068058,14.0014,1938.1,1937.9,2.90695]
[1617295069559,2.90695,1938.0,1937.9,2.90695]
[1617295069760,32.90695,1938.0,1937.9,2.90695]
[1617295071863,32.90695,1938.0,1936.8,27.0]
[1617295072063,69.8893,1937.6,1936.8,27.0]
[1617295072264,30.0,1937.5,1936.8,27.0]
[1617295072764,30.0,1937.5,1936.8,31.0]
[1617295072964,30.0,1937.5,1936.8,29.0]
[1617295073366,30.0,1937.5,1936.8,15.0]
[1617295073566,32.90695,1937.5,1937.4,2.90695]
[1617295074567,34.90695,1937.5,1937.4,2.90695]
[1617295075169,32.90695,1937.5,1937.4,2.90695]
[1617295075669,32.90695,1937.5,1937.2,2.90695]
[1617295077574,32.90695,1937.5,1937.4,2.90695]
[1617295081675,30.0,1937.5,1937.4,2.90695]
[1617295081877,30.0,1938.0,1937.4,2.90695]
[1617295082076,30.0,1937.5,1937.4,2.90695]
[1617295084877,30.0,1938.0,1937.4,2.90695]
[1617295085478,14.0014,1938.1,1937.4,2.90695]
[1617295085678,14.0014,1938.1,1938.0,2.90695]
[1617295085879,14.0014,1938.1,1938.0,4.43905]
[1617295089992,8.8389,1938.1,1938.0,4.43905]
[1617295090192,27.6629,1938.3,1938.0,6.43905]
[1617295090589,3.9694,1938.2,1938.0,6.43905]
[1617295091189,27.1655,1938.3,1938.0,6.43905]
[1617295091389,27.1655,1938.3,1938.0,4.43905]
[1617295091789,27.1655,1938.3,1938.2,2.90695]
[1617295091989,30.0,1940.0,1938.2,4.90695]
[1617295092191,30.0,1940.0,1938.3,70.0403]
[1617295093792,30.0,1940.0,1939.9,2.90695]
[1617295095697,32.90695,1940.0,1939.9,2.90695]
[1617295098699,33.92825,1940.0,1939.9,2.90695]
[1617295099097,32.90695,1940.0,1939.9,2.90695]
[1617295106107,116.83755,1940.0,1939.9,2.90695]
[1617295110212,32.90695,1940.0,1938.1,2.0]
[1617295110414,32.90695,1940.0,1938.0,2.584]
[1617295110415,59.0694,1939.2,1937.1,59.0694]
[1617295110612,30.0,1939.1,1937.1,59.42491792]
[1617295110811,44.4794,1939.1,1937.1,59.42491792]
[1617295111014,44.4794,1939.1,1937.1,59.0694]
[1617295111213,58.6222,1939.1,1937.1,59.0694]
[1617295111713,58.6222,1939.1,1937.2,2.0]
[1617295111913,58.6222,1939.1,1938.8,2.90695]
[1617295112513,60.6222,1939.1,1938.8,2.90695]
[1617295114015,2.90695,1938.9,1938.8,2.90695]
[1617295114216,32.90695,1938.9,1938.8,2.90695]
[1617295115316,30.0,1938.9,1938.8,2.90695]
[1617295116516,28.6222,1939.1,1938.8,2.90695]
[1617295116717,28.6222,1939.1,1938.8,4.08365]
[1617295117717,28.6222,1939.1,1938.8,2.90695]
[1617295117917,28.6222,1939.1,1939.0,2.90695]
[1617295118719,58.6222,1939.1,1939.0,2.90695]
[1617295120020,61.52915,1939.1,1939.0,2.90695]
[1617295121822,58.6222,1939.1,1939.0,2.90695]
[1617295128631,139.7606,1939.1,1939.0,2.90695]
[1617295130041,139.7606,1939.1,1938.8,2.90695]
[1617295131938,2.90695,1938.9,1938.8,2.90695]
[1617295132138,32.90695,1938.9,1938.8,2.90695]
[1617295133040,30.0,1938.9,1938.8,2.90695]
[1617295134039,32.90695,1938.9,1938.8,2.90695]
[1617295151167,32.90695,1938.9,1937.9,2.584]
[1617295151364,66.2333,1938.2,1937.9,2.584]
[1617295151567,30.0,1938.1,1937.9,2.584]
[1617295151765,45.0836,1938.1,1937.9,2.584]
[1617295152164,45.0836,1938.1,1938.0,2.90695]
[1617295154067,47.99055,1938.1,1938.0,2.90695]
[1617295154267,47.99055,1938.1,1938.0,2.10905]
[1617295155068,62.35075,1938.1,1938.0,2.10905]
[1617295156973,62.35075,1938.1,1938.0,1.34895]
[1617295160475,63.98055,1938.1,1938.0,1.34895]
[1617295164078,63.98055,1938.1,1937.3,2.584]
[1617295164279,2.90695,1937.4,1936.9,4.21810437]
[1617295164478,30.0,1937.3,1936.9,4.21810437]
[1617295164683,44.1147,1937.3,1936.8,33.90695]
[1617295164878,44.1147,1937.3,1936.9,0.35865262]
[1617295165078,58.129,1937.3,1936.9,0.35865262]
[1617295166182,58.129,1937.3,1937.2,2.90695]
[1617295167085,58.129,1937.3,1936.8,35.21831632]
[1617295167484,58.129,1937.3,1936.9,0.35847968]
[1617295168085,58.129,1937.3,1936.8,31.0]
[1617295168284,2.90695,1936.9,1936.8,31.0]
[1617295168486,34.06485,1936.9,1936.8,31.0]
[1617295168687,31.1579,1936.9,1936.8,31.35881403]
[1617295170088,1.1579,1936.9,1936.8,31.35881403]
[1617295170289,28.129,1937.3,1936.8,34.26576403]
[1617295170687,28.129,1937.3,1937.0,68.498]
[1617295171288,28.129,1937.3,1937.1,0.3581245]
[1617295171488,28.129,1937.3,1937.1,1.5278245]
[1617295171990,28.129,1937.3,1937.2,0.35775023]
[1617295172191,28.129,1937.3,1937.2,3.26470023]
[1617295172394,58.129,1937.3,1937.2,3.26470023]
[1617295172592,58.129,1937.3,1937.2,0.35775023]
[1617295172792,58.129,1937.3,1937.0,4.21799268]
[1617295173193,59.5834,1937.3,1936.8,31.0]
[1617295174292,2.90695,1936.9,1936.8,31.0]
[1617295174493,34.16435,1936.9,1936.8,31.0]
[1617295174898,1.2574,1936.9,1936.8,31.0]
[1617295175494,28.129,1937.3,1936.8,31.0]
[1617295175695,28.129,1937.3,1936.8,32.4393]
[1617295176094,28.129,1937.3,1936.9,2.0]
[1617295176294,14.4532,1938.0,1937.2,2.90695]
[1617295176495,14.4532,1938.0,1937.3,2.0]
[1617295178297,17.36015,1938.0,1937.9,2.90695]
[1617295178498,14.4532,1938.0,1937.9,2.90695]
[1617295181501,14.4532,1938.0,1937.9,4.90695]
[1617295183003,14.4532,1938.0,1937.9,24.90695]
[1617295184102,14.4532,1938.0,1937.9,26.39535]
[1617295187104,14.4532,1938.0,1937.9,26.75100817]
[1617295187905,2.90695,1938.8,1937.9,26.75100817]
[1617295188106,30.0,1939.1,1937.9,26.75100817]
[1617295188306,44.463,1939.1,1937.9,26.75100817]
[1617295188708,44.463,1939.1,1938.0,0.35526863]
[1617295190311,2.90695,1938.9,1938.0,0.35526863]
[1617295192713,32.90695,1938.9,1938.0,0.35526863]
[1617295192916,83.5209,1938.4,1937.9,24.90695]
[1617295193114,83.5209,1938.4,1937.9,22.90695]
[1617295193716,1.1029,1938.2,1937.9,22.90695]
[1617295194416,2.90695,1938.0,1937.9,22.90695]
[1617295194816,32.90695,1938.0,1937.9,22.90695]
[1617295195217,32.90695,1938.0,1937.9,2.90695]
[1617295195419,2.90695,1938.0,1937.9,2.90695]
[1617295195618,11.0,1938.1,1937.9,2.90695]
[1617295196319,2.90695,1938.0,1937.9,2.90695]
[1617295197118,17.79015,1938.0,1937.9,2.90695]
[1617295201023,14.8832,1938.0,1937.9,2.90695]
[1617295203924,14.8832,1938.0,1937.9,3.26487499]
[1617295204126,14.8832,1938.0,1937.9,23.26487499]
[1617295205826,14.8832,1938.0,1937.9,22.90695]
[1617295207328,14.8832,1938.0,1937.9,2.90695]
[1617295210530,17.79015,1938.0,1937.9,2.90695]
[1617295211933,14.8832,1938.0,1937.9,22.90695]
[1617295213031,14.8832,1938.0,1937.9,23.26574822]
[1617295214734,14.8832,1938.0,1937.9,22.90695]
[1617295217137,44.8832,1938.0,1937.9,20.0]
[1617295218137,44.8832,1938.0,1937.3,2.584]
[1617295218338,79.1056,1937.6,1937.3,2.584]
[1617295218537,2.90695,1937.4,1937.3,2.584]
[1617295218736,32.90695,1937.4,1937.3,2.584]
[1617295220537,32.90695,1937.4,1937.3,5.49095]
[1617295220737,32.90695,1937.4,1937.3,2.90695]
[1617295221639,2.90695,1937.4,1937.3,2.90695]
[1617295222939,79.1056,1937.6,1937.3,2.90695]
[1617295224545,79.1056,1937.6,1937.5,2.90695]
[1617295226640,82.01255,1937.6,1937.5,2.90695]
[1617295230955,2.90695,1937.6,1936.8,34.22663892]
[1617295231154,4.51725,1937.6,1936.8,34.22663892]
[1617295231346,4.51725,1937.6,1936.8,31.0]
[1617295231551,4.51725,1937.6,1936.8,27.0]
[1617295232146,30.0,1937.5,1936.8,27.0]
[1617295232749,2.90695,1936.9,1936.8,31.0]
[1617295232949,2.90695,1936.9,1936.8,29.0]
[1617295233151,32.90695,1936.9,1936.8,29.0]
[1617295233346,32.90695,1936.9,1936.8,31.0]
[1617295233559,32.90695,1936.9,1936.8,15.0]
[1617295233760,78.6855,1937.5,1936.8,31.0]
[1617295233954,78.6855,1937.5,1936.8,32.6098]
[1617295234152,93.4867,1937.5,1936.8,32.6098]
[1617295234750,93.4867,1937.5,1937.4,2.90695]
[1617295234953,123.4867,1937.5,1936.8,32.6098]
[1617295235552,2.0,1937.4,1936.8,32.6098]
[1617295235761,32.0,1937.3,1936.8,31.0]
[1617295235961,85.2113,1937.0,1936.8,31.0]
[1617295236156,30.0,1936.9,1936.8,31.0]
[1617295236752,32.90695,1936.9,1936.8,31.0]
[1617295240154,34.90695,1936.9,1936.8,31.0]
[1617295240555,32.90695,1936.9,1936.8,31.0]
[1617295241655,34.90695,1936.9,1936.8,31.0]
[1617295252566,32.90695,1936.9,1936.8,31.0]
[1617295252766,90.75125,1936.9,1936.8,31.0]
[1617295252966,90.75125,1936.9,1936.8,32.4126]
[1617295253166,90.75125,1936.9,1936.8,24.4126]
[1617295253366,57.8443,1936.9,1936.8,24.4126]
[1617295253569,57.8443,1936.9,1936.8,32.4126]
[1617295253767,57.8443,1936.9,1936.8,31.4126]
[1617295254168,57.8443,1936.9,1936.8,30.0]
[1617295254769,60.75125,1936.9,1936.8,30.0]
[1617295255168,60.75125,1936.9,1936.8,31.0]
[1617295255369,60.75125,1936.9,1936.8,27.0]
[1617295255569,60.75125,1936.9,1936.8,31.0]
[1617295255771,60.75125,1936.9,1936.8,29.0]
[1617295256971,90.75125,1936.9,1936.8,29.0]
[1617295257372,90.75125,1936.9,1936.8,31.0]
[1617295257573,90.75125,1936.9,1936.8,15.0]
[1617295257773,90.75125,1936.9,1936.8,31.0]
[1617295257974,92.75125,1936.9,1936.8,31.0]
[1617295259280,34.90695,1936.9,1936.8,31.0]
[1617295259878,32.90695,1936.9,1936.8,31.0]
[1617295260879,34.90695,1936.9,1936.8,31.0]
[1617295261883,32.90695,1936.9,1936.8,31.0]
[1617295262882,34.90695,1936.9,1936.8,31.0]
[1617295267785,35.97395,1936.9,1936.8,31.0]
[1617295270491,34.90695,1936.9,1936.8,31.0]
[1617295272092,32.90695,1936.9,1936.8,31.0]
[1617295274697,2.90695,1936.9,1936.8,31.0]
[1617295276200,2.90695,1936.9,1936.8,23.0]
[1617295276401,2.90695,1936.9,1936.8,31.0]
[1617295276600,2.90695,1936.9,1936.8,30.0]
[1617295277002,32.90695,1936.9,1936.8,30.0]
[1617295277202,34.39045,1936.9,1936.8,30.0]
[1617295277404,36.39045,1936.9,1936.8,30.0]
[1617295278002,34.39045,1936.9,1936.8,31.0]
[1617295278203,34.39045,1936.9,1936.8,27.0]
[1617295278403,32.90695,1936.9,1936.8,27.0]
[1617295278603,34.90695,1936.9,1936.8,29.0]
[1617295279905,34.90695,1936.9,1936.8,31.0]
[1617295280106,34.90695,1936.9,1936.8,15.0]
[1617295280505,34.90695,1936.9,1936.8,31.0]
[1617295283613,4.90695,1936.9,1936.8,31.0]
[1617295285115,2.90695,1936.9,1936.8,31.0]
[1617295286916,32.90695,1936.9,1936.8,31.0]
[1617295290821,2.90695,1936.9,1936.8,31.0]
[1617295292219,78.58935,1936.9,1936.8,31.0]
[1617295293022,78.58935,1936.9,1936.8,33.90695]
[1617295293221,78.58935,1936.9,1936.8,31.0]
[1617295295125,78.58935,1936.9,1936.8,33.90695]
[1617295297526,78.58935,1936.9,1936.8,53.90695]
[1617295297925,78.58935,1936.9,1936.8,45.90695]
[1617295299227,78.58935,1936.9,1936.8,53.90695]
[1617295299426,78.58935,1936.9,1936.8,52.90695]
[1617295299828,78.58935,1936.9,1936.8,49.90695]
[1617295300028,75.6824,1936.9,1936.8,49.90695]
[1617295300429,75.6824,1936.9,1936.8,53.90695]
[1617295300630,75.6824,1936.9,1936.8,51.90695]
[1617295301935,75.6824,1936.9,1936.8,53.90695]
[1617295302136,75.6824,1936.9,1936.8,37.90695]
[1617295302536,75.6824,1936.9,1936.8,53.90695]
[1617295308139,14.7448,1937.1,1936.8,53.90695]
[1617295309141,14.7448,1937.1,1937.0,2.90695]
[1617295309941,14.7448,1937.1,1937.0,22.90695]
[1617295319163,14.7448,1937.1,1937.0,87.50615]
[1617295319963,14.7448,1937.1,1937.0,92.09684428]
[1617295320464,14.7448,1937.1,1937.0,122.09684428]
[1617295320866,14.7448,1937.1,1937.0,117.86707345]
[1617295321165,14.7448,1937.1,1937.0,57.49761183]
[1617295321568,14.7448,1937.1,1937.0,53.26787345]
[1617295321769,14.7448,1937.1,1937.0,52.90695]
[1617295322569,14.7448,1937.1,1937.0,54.72708804]
[1617295322968,14.7448,1937.1,1937.0,52.90695]
[1617295323568,14.7448,1937.1,1937.0,22.90695]
[1617295325368,17.65175,1937.1,1937.0,22.90695]
[1617295325969,14.7448,1937.1,1937.0,22.90695]
[1617295326370,14.7448,1937.1,1937.0,2.90695]
[1617295328575,16.1254,1937.1,1937.0,2.90695]
[1617295329573,19.03235,1937.1,1937.0,2.90695]
[1617295330173,14.7448,1937.1,1937.0,2.90695]
[1617295346196,14.7448,1937.1,1937.0,3.95355]
[1617295346595,14.7448,1937.1,1937.0,2.90695]
[1617295359207,14.7448,1937.1,1937.0,3.26846121]
[1617295361111,14.7448,1937.1,1937.0,2.90695]
[1617295361512,14.7448,1937.1,1937.0,3.26858416]
[1617295362512,14.7448,1937.1,1937.0,2.90695]